{"text_format":"1","workbook":"xlsx","n_sheets":6,"sheets":["AG","ЕЛЕКТРО","ВиК","МАШИНСКЕ","dojava požara","РЕКАПИТУЛАЦИЈА"],"not_rendered":{"charts":0,"images":0,"macros":0,"external_links":0,"defined_names":2,"comments":0,"pivot_tables":0},"unopened":[],"bounds":{"document_bytes":16777216,"sheet_cells":100000,"rows_first":2000,"rows_last":500,"rows_between":2000,"halvings":0,"cell_chars":16384,"cell_head_chars":4096},"cells_cut":0,"cells_raw":0,"read":"whole","date_system":"1900"}

{"sheet":"AG","index":0,"n_rows":220,"n_cols":7,"rows_kept":220,"cut":false,"hidden":false,"merged":[[219,5,219,6],[216,5,216,6],[217,5,217,6],[218,5,218,6],[214,5,214,6],[215,5,215,6],[182,1,182,6],[197,1,198,1],[210,5,210,6],[211,5,211,6],[212,5,212,6],[213,5,213,6],[209,5,209,6],[124,0,125,0],[124,1,124,6],[179,0,181,0],[179,1,179,6],[180,1,180,6],[181,1,181,6],[147,1,147,6],[185,0,186,0],[185,1,185,6],[186,1,186,6],[183,0,184,0],[183,1,183,6],[184,1,184,6],[164,0,165,0],[164,1,164,6],[165,1,165,6],[150,1,151,1],[152,1,153,1],[90,1,90,6],[91,1,91,6],[69,1,69,6],[169,1,171,1],[166,0,167,0],[166,1,166,6],[167,1,167,6],[142,0,143,0],[142,1,142,6],[143,1,143,6],[144,1,144,6],[161,0,163,0],[161,1,161,6],[162,1,162,6],[145,0,147,0],[145,1,145,6],[146,1,146,6],[148,1,148,6],[154,1,155,1],[163,1,163,6],[127,0,128,0],[127,1,127,6],[128,1,128,6],[129,0,130,0],[92,0,93,0],[92,1,92,6],[93,1,93,6],[37,1,37,6],[125,1,125,6],[126,1,126,6],[129,1,129,6],[130,1,130,6],[102,0,104,0],[102,1,102,6],[103,1,103,6],[104,1,104,6],[89,0,91,0],[89,1,89,6],[109,0,112,0],[109,1,109,6],[110,1,110,6],[111,1,111,6],[112,1,112,6],[105,0,107,0],[105,1,105,6],[106,1,106,6],[107,1,107,6],[108,1,108,6],[66,0,68,0],[66,1,66,6],[67,1,67,6],[68,1,68,6],[32,1,32,6],[41,1,41,6],[35,1,35,6],[34,1,34,6],[86,0,88,0],[86,1,86,6],[87,1,87,6],[88,1,88,6],[36,1,36,6],[6,2,6,5],[4,2,4,6],[1,1,1,6],[2,2,2,6],[3,1,3,6],[33,1,33,6],[9,0,9,6],[29,1,29,6],[30,1,30,6],[31,1,31,6]]}
[]
[null,"Објекат:            ИНСТИТУТ ЗА РЕХАБИЛИТАЦИЈУ БЕОГРАД\n\n"]
[]
[null,"Врста тех док:   ИДП - ИДЕЈНИ ПРОЈЕКАТ \n\n"]
[null,null,"                 ЗА АДАПТАЦИЈИ ДЕЛА ПРИЗЕМЉА - ЗОНА РЕНТГЕНА"]
[]
[null,null,"П Р Е Д М Е Р   Р А Д О В А "]
[]
[]
["С А Д Р Ж А Ј"]
[]
[]
[null,null,"I ГРАЂЕВИНСКО-ЗАНАТСКИ ПОСЛОВИ (ГЗП)"]
[]
[null,1,"Радови на припреми и рушењу"]
[null,2,"Зидарски радови"]
[null,3,"Изолатерски радови"]
[null,4,"Грађевинска столарија"]
[null,5,"Браварски радови"]
[null,6,"Стаклорезачки радови"]
[null,7,"Керамичарски радови"]
[null,8,"Сувомонтажни радови"]
[null,9,"Молерско-фарбарски радови"]
[null,10,"Разни радови"]
[]
[]
[]
[null,null,"ГРАЂЕВИНСКО ЗАНАТСКИ РАДОВИ"]
[]
[null,"Све радове треба извести према плановима, техничком опису, предмеру и предрачуну радова, важећим техничким прописима, важећим стандардима, као и упутству надзорног органа.\nЈединичном ценом сваке позиције предрачуна обухваћени су сви потребни елементи за њено формирање тако да она у погодбеном предрачуну буде коначна."]
[null,"Материјал:\nПод ценом материјала подразумева се набавна цена главног, помоћног и везног материјала, заједно са трошковима набавке, ценом спољног и унутрашњег транспорта, без обзира на превозно средство које је употребљено са свим потребним утоваром, истоваром, складиштењем и чувањем на градилишту од кварења и пропадања, са потребним манипулацијама."]
[null,"Предрачуном радова за неке материјале није ближе прецизиран произвођач, или заштићени трговчаки назив, назив материјала, или конструкције чија се употреба предвиђа. У сваком случају и за прецизиране и непрецизиране материјале даје се могућност извођачу да може применити адекватне материјале, или конструкције различитих произвођача, или различитих трговачких назива. Подразумева се да кавлитет и погодност примене тих материјала, или конструкција мора бити најмање на истом, или вишем нивоу од захтеваног, односно пројектованог квалитета. Поред тога примена таквих материјала и конструкција дозвољава се само уз претходну сагласност пројектаната и инвеститора."]
[null,"Рад:\nВредност радова обухвата главни и помоћни рад свих потребних операција позиције предрачуна, сав рад на унутрашњем хоризонталном и вертикалном транспорту и сав потребан рад око заштите изведених конструкција од штетних утицаја за време градње (извођење других позиција радова, врућина, хладноћа, киша, ветар и др.)."]
[null,"Помоћне конструкције:\nСве врсте скела без обзира на висину и сл. улазе у јединичну цену посла за коју су потребне. Скеле морају бити постављене на време, да не би ометале нормалан ток радова, а у цену је урачуната демонтажа и одношење скеле са градилишта. \nСва потребна оплата без обзира на врсту, улази у јединичну цену посла за који је потребна и не наплаћује се посебно. Код оплате подразумевају се и сва потребна подупирања и укрућења и то: израда, постављање, демонтажа, чишћење и слагање."]
[null,"Остали трошкови и дажбине:\nИзвођач има ценом да обухвати следеће факторе који му се неће посебно плаћати било као предрачунска средства или накнадни рад и то: - све хигијенско-техничке заштитне мере за личну заштиту радника, заштиту на објекту и за околину\n- чишћење и одржавање реда на објекту за време извођења радова, са одвозом разног смећа, шута и  отпадака, док се завршно чишћење предвиђа као посебна позиција;\n- уређивање градилишног простора и земљишта око новоподигнутих објеката, које је коришћено за градилиште, односно његово довођење у уредно стање без остатка грађевинског шута, обезбеђење могућности за ускладиштење материјала и алата коопераната, занатлија и инсталатера;"]
[null," - никакви посебни трошкови неће се посебно признавати, јер се све треба укључити кроз фактор у јединачне цене за сваки рад.\nПрема овим условима, опису појединих ставки, треба саставити јединичну цену за сваку ставку предрачуна.\nСве ове одредбе важе и за занатске и инсталатерске радове, с тим што извођач носилац главних радова мора да предвиди и накнаду свих режијских трошкова око испомоћи, ангажовања рада, материјала, алата и другог у вези наведених радова, ако се такви радови изводе преко коопераната.   Сви ови односи се морају прецизно уговорити, тако да инвеститора не могу теретити никакви додатни трошкови."]
[null,"Посебно обратити пажњу на синхронизацију радова јер се не признају било какви трошкови на разна штемовања и крпљења после проласка инсталација кроз и преко зидова и других конструкција. За инсталације се морају приложити уверења о извршеном испитивању од стране овлашћених организација, а за уграђену опрему гарантни листови. Трошкови пробног рада инсталација падају на терет извођача радова."]
[null,"Мере и обрачун:\nУколико у одређеној ставци није дат начин обрачуна радова, придржавати се у свему важећих просечних норми у грађевинарству, или техничких услова за извођење завршних радова у грађевинарству."]
[]
[null,null,null,"мера","количина","цена/јед","укупно"]
[null,1,"Радови на припреми и рушењу: "]
[null,"Напомена:                                                                                                                                                       Пре почетка рушења сваке позиције надзорни орган је обавезан да преконтролише предузете мере заштите ради стабилности објекта и сигурности извођача, тако да рушење може започети тек пошто то дозволи надзорни орган. Пре почетка демонтаже и рушења у санитарним просторијама затворити вентиле и обезбедити инсталације које се задржавају.                                                                                                                                                                                                                                            "]
[]
[null,1,"У току радова извршити више пута грубо чишћење градилишта од грађевинског шута са преносом шута на депонију градилишта. Плаћа се једанпут без обзира на број чишћења.\nОбрачун по m2 градилишта","m2",100,null,{"$f":"IF(F44=\"\",\"\",E44*F44)","v":""}]
[null,2,"Чишћење и прање градилишта по завршетку свих радова. Извршити детаљно чишћење целог градилишта, прање свих стаклених површина, чишћење и фино прање свих унутрашњих простора и спољних површина.\nОбрачун по m2 пода.","m2",100,null,""]
[null,3,"Изношење постојећег намештаја из простора који се адаптира. Намештај депоновати у оквиру објекта, на место које одреди Инвеститор. По депоновању исти заштитити ПВЦ фолијом.\nОбрачун по m2 површине просторије.","m2",113.86,null,""]
[null,4,"Демонтажа постојећих алуминијумских и гвозденоливених радијатора. Радијаторе  депоновати у оквиру објекта, на место које одреди Инвеститор, до поновне уградње.\nОбрачун по комаду.","ком",8,null,""]
[null,5,"Пажљиво шлицање зида од бетона и опеке за пролаз инсталација. Кроз зид пажљиво извести шлицеве за постављање инсталација. Шут прикупити, изнети, утоварити на камион и одвести на градску депонију.\nОбрачун по m1 шлица.","m1",100,null,""]
[null,6,"Рушење постојећих преградних зидова од опеке или блока, дебљине д=12cm (омалтерисан и обложен кер.плочицама) заједно са свим облогама на зиду, инсталацијама, АБ серклажима. Сав шут од рушења извести ван објекта, утоварити у камион, одвести на депонију удаљену до 5кm, истоварити и испланирати шут на депонији.\nОбрачун по m2 комплет изведене позиције.","m2",90.8,null,""]
[null,7,"Демонтажа дрвених  врата, заједно са штоком. Демонтиран материјал депоновати на место које одреди инвеститор, а удаљено до 5кm. Врата су димензија 80-110/210цм.\nОбрачун по комаду комплет изведене позиције. ","ком",8,null,""]
[null,8,"Демонтажа дрвених  шибер прозора, заједно са штоком. Демонтиран материјал депоновати на место које одреди инвеститор, а удаљено до 5кm. Шибер је димензија до 1,0м2.\nОбрачун по комаду комплет изведене позиције. ","ком",1,null,""]
[null,9,"Разбијање кадице и пулта у мрачној комори у зони рентгена. Све разбити у комплету са облогама, шут прикупити, изнети из објекта, утоварити на камион и одвести на граску депонију.\nОбрачун по комаду комплетне изведене позиције.","ком",1,null,""]
[null,10,"Обијање зидних керамичких плочица заједно са малтером (подлогом). Обити плочице са малтером и кламфама очистити спојнице до дубине 2цм, а површину опеке очистити челичним четкама. Шут прикупити, изнети, утоварити на камион и одвести на градску депонију.\nОбрачун по m2 обијене површине, отвори се одбијају.","m2",46.23,null,""]
[null,11,"Обијање подних керамичких плочица постављених у цементном малтеру. Обити плочице и скинути подлогу до бетонске конструкције. Шут прикупити, изнети, утоварити на камион и одвести на градску депонију.\nОбрачун по m2 пода.","m2",43,null,""]
[null,12,"Демонтажа постојећих лимених канала, са изношењем из објекта и депоновањем на градилишну депонију. Каналису димензија цца 90/25цм.\nОбрачун по комаду м1 демонтираног канала.","м1",12,null,""]
[null,13,"Непредвиђени радови приликом рушења (разна \nизмештања инсталација и слично).\nОбрачун паушално.","паушал",1,null,""]
[null,14,"Демонтажа старих вентилатора и осталих елемената машинских инсталација.\nОбрачун паушално.","паушал",1,null,""]
[null,15,"Демонтажа постојећег пода од Линеолеума или Винфлекса. Под скинути подлогу очистити струшкама од остатка лепка, шут прикупити, изнети из објекта, утоварити на камион и одвести на градску депонију.\nОбрачун по m2 демонтираног пода.","m2",74.22,null,{"$f":"IF(F58=\"\",\"\",E58*F58)","v":""}]
[null,16,"Демонтажа постојећег плафона од гипскартонских плоча. Плафон скинути са подконструкцијо, шут прикупити, изнети из објекта, утоварити на камион и одвести на градску депонију.\nОбрачун по m2 демонтираног лафона.","m2",10,null,{"$f":"IF(F59=\"\",\"\",E59*F59)","v":""}]
[null,17,"Демонтажа постојећег плафона од минералних плоча типа Армстронг. Плафон скинути са подконструкцијом, шут прикупити, изнети из објекта, утоварити на камион и одвести на градску депонију.\nОбрачун по m2 демонтираног лафона.","m2",4,null,{"$f":"IF(F60=\"\",\"\",E60*F60)","v":""}]
[null,18,"Обијање продужног или кречног малтера са зидова. Малтер обити, спојнице очистити до дубине 2цм, шут прикупити, изнети из објекта, утоварити на камион и одвести на градску депонију.\nОбрачун по m2 обијеног малтера.","m2",96,null,{"$f":"IF(F61=\"\",\"\",E61*F61)","v":""}]
[null,19,"Обијање пода - цементне кошуљице. Кошуљицу обити са свим слојевима до бетонске конструкције, под очистити, шут прикупити, изнети из објекта, утоварити на камион и одвести на градску депонију.\nОбрачун по m2 обијеног пода.","m2",74.22,null,{"$f":"IF(F62=\"\",\"\",E62*F62)","v":""}]
[null,null,"Укупно радови на припреми и рушењу:",null,null,null,{"$f":"SUM(G44:G62)","v":0}]
[]
[null,2,"Зидарски радови: "]
[]
[null,"Све зидарске радове извести са одговарајућом стручном радном снагом."]
[null,"Сви употребљени материјали, елементи и везивна средства морају бити прописаног квалитета."]
[null,"Изведени радови морају бити равни, да имају задате геометријске облике, односно да у свему одговарају условима техничке документације."]
[null,"Површине које се обрађују, морају бити очишћене од било каквих страних примеса. Обрађене површине морају бити: равне, чисте и правилних углова и ивица. Материјале за обраду, искључиво наносити на прописано припремљену подлогу. Обрачун се врши по јединици мере, назначене код сваке  позиције радова. Јединична цена обухвата израду комплетне позиције радова, (набавку материјала, спољни и унутрашњи транспорт, уграђивање, мере заштите, све хоризонталне и вертикалне преносе, неопходну радну скелу, потребну оплату и остале операције које су неопходне за квалитетно извођење радова."]
[]
[null,1,"Зидање преградних зидова дебљине 10cm, Ytong  блоковима 10x60x25cm одговарајућим грађевинским лепком по систему блок везе. Пре зидања блокове добро очистити и поквасити водом да малтер не прегори. Везу између носећих и преградних зидова остварити остављањем шморцева по вертикали или помоћу алуминијумских клинова. Зидање извести по упутству произвођача. У цену улазе и надвратници, серклажи, арматура, оплата и подупирачи. У висини надвратних греда, или на висини од 215цм, од готовог пода, урадити армирано бетонске серклаже димензија 10x20cm. Марка бетона је МБ 20, а арматура серклажа 2ø8, узенгије ø6/25.\nОбрачун по m2 зида.","m2",113.61,null,{"$f":"IF(F72=\"\",\"\",E72*F72)","v":""}]
[null,2,"Зидање преградних зидова дебљине 7cm, Ytong  блоковима 7x60x20cm одговарајућим грађевинским лепком по систему блок везе. Пре зидања блокове добро очистити и поквасити водом да малтер не прегори. Везу између носећих и преградних зидова остварити остављањем шморцева по вертикали или помоћу алуминијумских клинова. Зидање извести по упутству произвођача. У цену улазе и надвратници, серклажи, арматура, оплата и подупирачи. У висини надвратних греда, или на висини од 215цм, од готовог пода, урадити армирано бетонске серклаже димензија 7x20cm. Марка бетона је МБ 20, а арматура серклажа 2ø8, узенгије ø6/25.\nОбрачун по m2 зида.","m2",3.86,null,{"$f":"IF(F73=\"\",\"\",E73*F73)","v":""}]
[null,3,"Зидање преградних зидова дебљине 5cm, Ytong  блоковима 5x60x20cm одговарајућим грађевинским лепком по систему блок везе. Пре зидања блокове добро очистити и поквасити водом да малтер не прегори. Везу између носећих и преградних зидова остварити остављањем шморцева по вертикали или помоћу алуминијумских клинова. Зидање извести по упутству произвођача. У цену улазе и надвратници, серклажи, арматура, оплата и подупирачи. У висини надвратних греда, или на висини од 215цм, од готовог пода, урадити армирано бетонске серклаже димензија 5x20cm. Марка бетона је МБ 20, а арматура серклажа 2ø8, узенгије ø6/25. Зидови се зидају као облоге туш када па је потребно извести и серклаж за укрућенје између два зида који улази у цену.\nОбрачун по m2 зида.","m2",3.86,null,""]
[null,4,"Крпљење шлицева, на месту провучених инсталација цементним малтером размере 1:3.Окрпљене површине морају бити равне и без прегиба и таласа. Спој са постојећим површинама мора бити неприметан. У цену улази и помоћна скела.\nОбрачун по m1 шлица.","m1",60,null,{"$f":"IF(F75=\"\",\"\",E75*F75)","v":""}]
[null,5,"Малтерисање старих зидова од опеке и блока са којих је уклоњена керамика, продужним малтером размере 1:3:9 у два слоја са финим пердашењем другог завршног  слоја. Бетонске  делове зидова од опеке предходно испрскати цементним млеком.\nОбрачун по m2 комплет изведене позиције заједно са потребном покретном зидарском скелом.","m2 ",35,null,""]
[null,6,"Израда рабициране цементне кошуљице, дебљине 4cm, као подлоге за постављање керамичких плочица. Подлогу за кошуљицу, пре наношења кошуљице, очистити и опрати. Малтер за кошуљицу справити са просејаним шљунком \"јединицом\", размере 1:3. Армирати је рабиц плетивом, постављеним у средини слоја. Кошуљицу радити према пројектованим нагибима ка сливницима и неговати док не очврсне.\nОбрачун по m2  кошуљице.","m2",40,null,{"$f":"IF(F77=\"\",\"\",E77*F77)","v":""}]
[null,7,"Израда рабициране пердашене цементне кошуљице, дебљине 4cm, као подлоге за израду пода. Подлогу за кошуљицу, пре наношења кошуљице, очистити и опрати. Малтер за кошуљицу справити са просејаним шљунком \"јединицом\", размере 1:3. Армирати је рабиц плетивом, постављеним у средини слоја.\nОбрачун по m2  кошуљице.","m2",26.84,null,{"$f":"IF(F78=\"\",\"\",E78*F78)","v":""}]
[null,9,"Обзиђивање канализационе вертикале Ytong блоковима деблјине 7цм. Вертикалу озидати са три слободне стране по принципу блок везе у одговарајућем лепку. У цену улази сав потребан рад и материјал, као и помоћна скела.\nОбрачун по m1.","m1",3,null,""]
[null,10,"Малтерисање зидова, подлоге за лепљење кер. плочица продужним малтером. Пре малтерисања површине очистити и испрскати ретким цементним млеком. Нанети слој малтера справљен од просејаног шљунка, /јединице/ и изравнати га. Малтер стално мешати да се цементно млеко не издвоји. Омалтерисане површине морају бити равне, без прелома и таласа. У цену улази и помоћна скела.\nОбрачун по m2 малтерисане површине, отвори се одбијају.","m2",65,null,{"$f":"IF(F80=\"\",\"\",E80*F80)","v":""}]
[null,11,"Малтерисање зидова, продужним малтером са пердашењем. Пре малтерисања површине очистити и испрскати ретким цементним млеком. Нанети слој малтера справљен од просејаног шљунка, /јединице/ и изравнати га, макон просушивања испердашити. Малтер стално мешати да се цементно млеко не издвоји. Омалтерисане површине морају бити равне, без прелома и таласа. У цену улази и помоћна скела.\nОбрачун по m2 малтерисане површине, отвори се одбијају.","m2",35,null,""]
[null,12,"Глетовање зидова од Ytong блока грађевинским лепком. Преко зидова слој грађевинског, утопити слој стаклене мрежице са преклопима од 10цм, и нанети завршни слој грађевинског лепка. Површине морају бити равне и без прегиба.\nОбрачун по м2 обрађене површине.","m2",60,null,{"$f":"IF(F82=\"\",\"\",E82*F82)","v":""}]
[null,null,"Укупно зидарски радови:",null,null,null,{"$f":"SUM(G72:G82)","v":0}]
[]
[null,3,"Изолатерски радови:"]
[]
[null,"Све изолатерске радове извести са одговарајућом стручном радном снагом, уз пуну примену савременог алата и механизације намењене овој врсти радова."]
[null,"Сви употребљени материјали, везивна и заштитна средства морају бити прописаног квалитета-односно да поседују атесте."]
[null,"Радови се морају извести  квалитетно у свему  према  вазећим прописима, стандардима  и  техничкој  документацији. Подлога мора бити чврста, глатка, сува и потпуно равна. Везивне масе не смеју  штетно  да  утичу на подлогу, нити на материјале са којима су у непосредном додиру. Изведене површине морају заузимати правилне геометријске положаје."]
[null,"Све инсталације и сви предходни  радови  морају се извести и испитати пре израде изолације. Прекид-наставци изолација дозвољавају се само у изузетним  случајевима, када за то постоје објективни разлози."]
[null,"Код  температура виших или нижих  од  прописаних, уколико се радови изводе, предузети мере заштите употребљеног основног и везног материјала. Мере  заштите не утичу на већ уговорену цену радова."]
[null,"За време извођења радова, односно до предаје објекта, извођач је дужан да предузме све потребне мере, како неби досло до оштећења ових радова. А ако ипак и дође до оштећења извођач ће о свом трошку, уз сагласност  надзорног  органа, радове  довести у пројектовано  стање. Приликом  извођења својих радова, извођач је дужан да остале врсте радова сачува од оштећења."]
[null,"Обрачун се врши по јединици мере, назначене код сваке  позиције радова. Јединична цена обухвата израду комплетне  позиције радова, (набавку основног, везног и материјала за заштиту, спољни и унутрашњи  транспорт, израду, мере  заштите, све хоризонталне и вертикалне преносе, неопходну радну скелу чишћење и остале активности које су неопходне за квалитетно извођење ових радова."]
[null,"Овај опис је саставни део сваке појединачно описане позиције радова и исти не искључује примену важећих прописа у грађевинарству из ове области."]
[]
[null,1,"Израда хидроизолације преко бетонске подлоге. Изолацију радити преко потпуно суве и чисте подлоге. Хладни премаз битулитом А нанети четком или прскањем, на температури вишој од 10 степени. Варење битуменских трака извести загревањем траке пламеником са отвореним пламеном, размекшавањем битуменске масе површине која се лепи и слепљивањем сопственом масом за подлогу. Траку залепити целом површином, са преклопима 10 цм, посебну пажњу посветити варењу спојева. Хидроизолацију извести од следећих слојева:\n-хладан премаз битулитом А \n-Кондор В4, варен за подлогу\n-Полиазбитол и мрежица уз холкеле и уз продоре\n-два слоја полиетиленске фолије, УРСА СЕЦО 500\nОбрачун по m2 изолације.","m2",60,null,{"$f":"IF(F96=\"\",\"\",E96*F96)","v":""}]
[null,2,"Израда хидроизолације мокрог чвора и сличних просторија. Изолацију радити преко потпуно суве и чисте подлоге и подићи уз зидове по детаљу пројекта (15 цм, а у зони туш кабине 180цм). Изолацију извести полимерцементним премазима уз наношење одговарајуће подлоге. Посебну пажњу обратити на премаз углова - Након израде премаза поставити одговарајућу траку (на угловима) по препоруци произвођача.\nОбрачун по m2 изведене хидроизолације.","m2",6,null,{"$f":"IF(F97=\"\",\"\",E97*F97)","v":""}]
[null,3,"Набавка и постављање по поду, термоизолационих плоча, \"Стиродур\" 3035 ЦС БАСФ, дебљине 2cm, од екструдиране полистиролске пене, масе 33kg/м3. Плоче поставити по пројекту, датим детаљима и упутству пројектанта или надзорног органа.\nОбрачун по m2 комплет изведене позиције.","m2",60,null,{"$f":"IF(F98=\"\",\"\",E98*F98)","v":""}]
[null,null,"Укупно изолатерски радови:",null,null,null,{"$f":"SUM(G96:G98)","v":0}]
[]
[null,4,"Грађевинска столарија:"]
[]
[null,"Све браварске радове извести са одговарајућом стручном радном снагом, уз пуну примену  савременог  алата и механизације намењене овој врст радова."]
[null,"Сви употребљени материјали спојна и везивна средства (заштитна средства) морају бити прописаног квалитета - односно да поседују атесте."]
[null,"Пре почетка израде позиција, извођач је дужан да уради радионичке детаље и исте поднесе пројектанту на оверу. Радови се морају извести квалитетно у свему према прописима, стандардима, техничкој документацији и овереним  радионичким детаљима."]
[null,"Браварију радити од профилисаног метала, равних и профилисаних лимова уз комбинацију са осталим  материјалима, како већ то налазе техничка документација и оверени радионички  детаљи."]
[null,"Код спојева разнородних материјала, извршити потребну заштиту заптивање-дихтовање, извести спољна и унутрашња опшивања, поставити одговарајући пројектовани оков за отварање и затварање, као и могућност закључавања."]
[null,"За сво време извођења, односно  предаје  објекта, извођач је дужан да предузме све потребне мере како  неби  дошло  до оштећења ових радова. А ако ипак дође до оштећења извођач ће о свом трошку, уз сагласност  надзорног  органа, радове довести у пројектовано стање."]
[null,"Обрачун се врши по јединици мере назначене код сваке позиције радова. Јединична цена обухвата израду и уградњу комплетне позиције  радова са комплетним  застакљивањем (набавку основног, везног и заштитног  материјала, спољни и унутрашњи транспорт, уграђивање, мере заштите, све  хоризонталне и вертикалне преносе, неопходну радну скелу, сва заптивања, дихтовања, спољна и унутрашња опшивања, све окове, заштита и финално бојење-лакирање као и остале активности које су неопходне за квалитетно извођење радова)."]
[null,"Овај опис је саставни део сваке појединачно описане позиције радова и исти неискључује примену вазећих прописа у грађевинарству из ове области."]
[null,"НАПОМЕНА:"]
[null,"Пре израде било које позиције браварских радова мере обавезно преконтролисати на лицу места."]
[null,"Звођач је у обавези а пре израде било које позицију уради радионичке детаље и исте достави главном пројектанту на увид и сагласност."]
[]
[null,1,"Набавка материјала, израда и монтажа унутрашњих пуних врата од пластифицираних алуминијумских профила са испуном  од оплемењене иверице. Профили и боја по избору инвеститора. Брава је цилиндрична са три кодирана кључа. Розета посебно за кваку, а посебно за браву. Плот опремити са минимум три масивне, квалитетне шарке велике носивости. Ознака из пројекта 01 у ромбу, зидарска мера 111/210cm. Оков врата опремити са аутоматом за успорено затварање и фиксирање од елоксираног алуминијума.\nОбрачун по комаду позиције.","ком",1,null,{"$f":"IF(F115=\"\",\"\",E115*F115)","v":""}]
[null,2,"Набавка материјала, израда и монтажа унутрашњих једнокрилних застакљених врата од пластифицираних алуминијумских профила са испуном  од вишеслојног сигурносног термо стакла дебљине 3.3.1+12+3.3.1мм, пескираним према детаљима ентеријера. Профили и боја по избору инвеститора. Брава је цилиндрична са три кодирана кључа. Розета посебно за кваку, а посебно за браву. Плот опремити са минимум три масивне, квалитетне шарке велике носивости. Ознака из пројекта 02 у ромбу , зидарска мера 101/210cm. Оков врата опремити са аутоматом за успорено затварање и фиксирање од елоксираног алуминијума.\nОбрачун по комаду позиције.","ком",2,null,{"$f":"IF(F116=\"\",\"\",E116*F116)","v":""}]
[null,4,"Набавка материјала,израда и монтажа унутрашње пуне преграде са двокрилним клизним вратима, од пластифицираних алуминијумских профила. Испуна од композитних алуминијумских панела са испуном од полистирена. Профили  и боја по избору инвеститора. Розета посебно за кваку, а посебно за браву. Плот опремити са одговарајућим инокс масивним оковом, велике носивости, за клизна врата. Ознака из пројекта 04 у ромбу зидарска мера 207+373/210cm.\nОбрачун по комаду позиције.","ком",1,null,{"$f":"IF(F117=\"\",\"\",E117*F117)","v":""}]
[null,5,"Набавка материјала, израда и монтажа унутрашњих пуних двокрилних врата од пластифицираних алуминијумских профила. Испуна од композитних алуминијумских панела са испуном од полистирена. Профили и боја по избору инвеститора. Брава је цилиндрична са три кодирана кључа. Розета посебно за кваку, а посебно за браву. Плот опремити са минимум три масивне, квалитетне шарке велике носивости. Ознака из пројекта 05 у ромбу, зидарска мера 122/210cm. \nОбрачун по комаду позиције.","ком",1,null,{"$f":"IF(F118=\"\",\"\",E118*F118)","v":""}]
[null,8,"Израда и уградња унутрашњe дводелне, стаклене преграде туш кабине. Стакло је сигурносно, вишеслојно, штампано, д=8mm. Штампу радити према детаљима пројекта ентеријера. Отварање према скици (двокрилна врата). Комплетан оков од инокса, шарке су стабилне и окрећу се од 90-180°, шрафови за фиксирање су прохромски.                                                     Ознака из пројекта 08 у ромбу, зидарска мера 88/210cm.\nОбрачун по комаду позиције.","ком",1,null,""]
[null,9,"Израда и уградња унутрашњих једнокрилних пуних дрвених врата са облогом од оловног лима дебљине 2мм. Шток врата, обложен оловним лимом, у ширини зида са покривним шток лајснама. Профили и боја по избору инвеститора. Брава је цилиндрична. Розета посебно за кваку, а посебно за браву. Плот опремити са минимум три масивне, квалитетне шарке велике носивости. Оков врата опремити са аутоматом за успорено заустављање и фиксирање у отвореном положају, под правим углом, од елоксираног алуминијума. Такође због тежине врата предвидети и вођицу (точкић и шину) да држе врата знд пода.. Ознака из пројекта 09 у ромбу зидарска мера 110/210cm.\nОбрачун по комаду позиције.","ком",1,null,""]
[null,null,"Укупно грађевинска столарија:",null,null,null,{"$f":"SUM(G115:G120)","v":0}]
[]
[null,5,"Браварски радови:"]
[]
[null,"Све радове на челичној конструкцији извести са одговарајућом  стручном радном снагом, уз пуну примену  савременог  алата и механизације намењене овој врсти радова."]
[null,"Сви употребљени материјали, спојна и везивна средства, заштитна средства морају бити прописаног квалитета - односно да поседује атесте. Пре почетка израде позиција извођач је дужан да уради радионићке детаље  и исте поднесе пројектанту на оверу. Важеће атесте морају да поседују и мајстори вариоци за одређене врсте радова."]
[null,"Конструкцију извести у свему према  техничкој  документацији статичком прорачуну и радионичким детаљима, уз обавезну употребу савремених метода за спречавање деформисања приликом варења. Места спајања и заваривања морају  бити  сува, чиста односно без трагова страних примеса.  Контролу  варова вршити једном од метода по захтеву надзорног органа. Основну заштиту конструкције извршити у радионици, по монтажи конструкције изврсити још једну заштиту, а затим исту фарбати два пута бојом за челик."]
[null,"За сво време извђјења радова, односно до предаје  објекта, извођач је дужан да предузме све потребне мере,  како  неби дошло до оштећења ових радова. А ако ипак и дође до  оштећења извођач ће о свом трошку, уз сагласност надзорног органа, радове довести у пројектовано стање."]
[null,"Обрачун се врши по јединици мере, назначене код сваке позиције радова. Јединична цена обухвата израду комплетне позиције радова (набавку основног и везивног материјала, спољни и унутрашњи  транспорт, израду и монтажу, мере  заштите, све хоризонталне и вертикалне преносе, радну и по потреби конструктивну скелу, трошкове контроле варова, заштиту и фарбање конструкције, као и остале  активности  које су неопходне за квалитетно извођење радова)."]
[null,"Јединачном ценом радова обухваћени су сви анкери, анкер кутије као и остале везне елементе, како оне на самој конструкцији тако и оне које се угрђјују у бетон."]
[null,"Овај опис је саставни део сваке појединачно описане позиције радова и исти не искључује примену важећих прописа и норматива у грађевинарству из ове области."]
[]
[null,1,"Израда и монтажа металне подконструкције као слепих штокова и надвратника за уградњу застакљених алуминијумских преграда. Подконструкцију направити од кутијастих профила међусобним варењем и анкеровањем у носеће елементе, по детаљима и упутству пројектанта. Кутијасте профиле очистити и премазати минијум бојом, два пута, и после уградње поправити. У цену улазе кутијасти профили, анкери и сав други потребан материјал.                                    Обрачун по кг челика.","кг",50,null,{"$f":"IF(F133=\"\",\"\",E133*F133)","v":""}]
[null,null,"Укупно браварски радови:",null,null,null,{"$f":"SUM(G133:G133)","v":0}]
[]
[null,6,"Стаклорезачки радови:"]
[]
[null,1,"Набавка и постављање огледала полукристал, дебљине 6мм, увозно. Огледала поставити по пројекту и детаљима.                                           Обрачун по m2 огледала.","m2",4,null,{"$f":"IF(F138=\"\",\"\",E138*F138)","v":""}]
[null,null,"Укупно стаклорезачки радови:",null,null,null,{"$f":"SUM(G138)","v":0}]
[]
[null,7,"Керамичарски радови:"]
[]
[null,"Све керамичарске  радове  извести са одговарајуцом  стручном радном снагом, уз пуну примену савременог алата и механизације намењене овој врсти радова."]
[null,"Сви употребљени материјали, спојна и везивна средства, заштитна средства морају бити прописаног  квалитета, односно да поседују атесте."]
[null,"Радови се морају извести  квалитетно у свему  према  важецим прописима, стандардима и техничкој документацији. Класа, намена и квалитет плочица одређен је техничком документацијом Боју и начин полагања одређује пројектант. Сва инсталација која није видна има се положити и испитати пре полагања плочица. За постављање плочица на лепку, подлога мора  бити, чиста, чврста, равна, са правилним и оштрим ивицама. Урађене површине морају заузимати правилне геометријске положаје."]
[null,"Током рада, где се то захтева, уградити дилатационе траке."]
[null,"Код  температура  нижих или виших од прописаних, уколико  се радови изводе, предузети мере заштите употребљеног основног и везног материјала. Мере заштите морају трајати до год постоји потреба за истим. Мере заштите неутичу на већ уговорену цену радова."]
[null,"За сво време извођења, односно до предаје објекта, извођач је дужан да предузме све потребне мере, како  неби  дошло до оштећења ових радова. А ако ипак дође до оштећења, извођач ће о свом трошку, уз сагласност надзорног органа, радове довести у пројектовано стање.\nПриликом извођења својих радова извођач је дужан да остале врсте радова сачува од оштећења."]
[null,"Обрачун се врши по јединици мере назначене код сваке позиције радова. Јединична цена обухвата израду комплетне позиције радова (набавка  основног, везног и материјала  за  заштиту, спољни и унутрашњи  транспорт, израду, мере  заштите, све хоризонталне и вертикалне  преносе, неопходну  радну  скелу, уградњу  дилатационих  трака, чишћење и остале  активности које су неопходне за квалитетно извођење ових радова).\nОвај опис је саставни део сваке појединачно описане позиције радова и исти неискључује примену вазећих прописа у грађевинарству из ове области."]
[]
[null,1,"Поплочавање свих подова противклизном гранитном керамиком у две боје, дебљине д=10мм I класе, боје и димензије према избору пројектанта. Плочице се полажу фуга на фугу без размака у слоју одговарајућег лепка. Фуге исфуговати епоксид фугомалом (цересит ц47(48) или слично). Коефицијент против клизности Р11. Све радити уз сагласност главног пројектанта и инвеститора.\nОбрачун по m2 комплет изведене позиције.","m2",34.700000000000003,null,{"$f":"IF(F151=\"\",\"\",E151*F151)","v":""}]
[null,null,"Набавка противклизне подне гранитне керамике, 30*30 - 30*60цм, коефицијент противклизности (мин.Р11), I класе, у свему према избору пројектанта. Резервисана вредност за набавку керамике је истоветна за све понуђаче.","m2",40,3200,128000]
[null,3,"Израда равне сокле плочицама од гранитне керамике I класе, h=7,5-12цм на подлози од одговарајућег лепка и са фуговањем фуга одговарајућом фуген масом. Плочице гранитне керамике у свему исте као подне плочице и фугмаса иста као подна фуг маса.\nОбрачун по m1 сокле.","m1",20,null,""]
[null,null,"Набавка противклизне подне гранитне керамике (за израду сокле), 30*30 - 30*60цм, коефицијент противклизности (мин.Р11), I класе, у свему према избору пројектанта. Резервисана вредност за набавку керамике је истоветна за све понуђаче.","m2",5,3000,{"$f":"IF(F154=\"\",\"\",E154*F154)","v":15000}]
[null,4,"Облагање зидова и дела зидова (комбинација са мозаик кер.) зидним керамичким плочицама I класе боје и димензија према избору пројектанта. Плочице се полажу фуга на фугу без размака у слоју одговарајућег лепка. Фуге исфуговати епоксид фугомалом (цересит ц47(48) или слично). Све радити уз сагласност главног пројектанта и инвеститора.\nОбрачун по m2 комплет изведене позиције.","m2",70,null,""]
[null,null,"Набавка зидне керамике I класе у свему према избору пројектанта. Резервисана вредност за набавку керамике је истоветна за све понуђаче.","m2",80,2000,{"$f":"IF(F156=\"\",\"\",E156*F156)","v":160000}]
[null,6,"Набавка и постављање угаоних алуминијумских лајсни у боји керамике на свим спољашњим угловима сучељавања зидова са облогом од керамичких плочица. Лајсне поставити право, без таласа и у равни са плочицама.                         Обрачун по m’ постављене лајсне. ","m’",40,null,""]
[null,null,"Укупно керамичарски радови:"]
[]
[null,8,"Сувомонтажни радови:"]
[]
[null,"Све сувомонтажне радове извести са одговарајућом стручном радном снагом, уз пуну примену савременог алата намењеног овој врсти радова."]
[null,"Сви уптребљени материјали, спојна и везивна средства, заштитна средства морају бити прописаног  квалитета  односно  да поседују атесте.\nРадови се морају извести квалитетно у свему према прописима, стандардима, техничкој документацији и овереним извођачким детаљима."]
[null,"Начин и правац постављања спуштеног плафона радити у свему према опису и детаљима из пројекта, а уз обавезну сагласност пројектанта. Узорке плафона и лајсни обавезно доставити на сагласност пројектанту."]
[null,"За сво време извођења, односно до предаје објекта, извођач је дужан да предузме све потребне мере, како  неби  дошло до оштећења ових радова. А ако  ипак и дође  до  оштећења извођач ће о свом трошку, уз сагласност  надзорног  органа, радове довести у пројектовано стање."]
[null,"Обрачун се врши по јединици мере, назначене код сваке позиције радова. Јединачна цена радова обухвата израду и уградњу комплетне позиције радова, (набавку основног, везног и заштитног материјала, спољни и унутрашњи транспорт, уграђивање, мере заштите, све хоризонталне  и  вертикалне  преносе, неопходну радну скелу као и остале активности које су неопходне за квалитетно извођење радова."]
[null,"Обрачун се врси по јединици мере, назначене код сваке позиције радова. Јединачна цена обухвата комплетну израду позиције радова, (набавку основног везног и материјала за заштиту, спољни и унутрашњи транспорт, израду, глачање-шлајфовање мере заштите, све хоризонталне и вертикалне преносе, неопходну радну скелу, уградњу дилатационих трака, уградњу сокл лајсни, чишċење и остале активности неопходне за квалитетно извођење ових радова.\nОвај опис је саставни део сваке појединацно описане позиције радова и исти неискључује примену важеċих прописа у грађевинарству из ове области."]
[null,"  "]
[null,1,"Израда спуштеног монолитног плафона oд влагоотпорних гипс-карт.плоча д=12,5 мм типа RIGIPS или слично на челичној подконструкцији . Подконструкцију израдити од носивих и монтажних профила CD 60x27мм причвршћених висилицама за носиви плафон (конструкцију) и обложити гипс-картонским плочама по пројекту и упутству произвођача. Саставе обрадити масом за испуну и бандаж тракама. У цену улази и израда отвора за монтажу светиљки и радна скела.\nОбрачун по m2 комплет изведене позиције.","m2",57,null,{"$f":"IF(F169=\"\",\"\",E169*F169)","v":""}]
[null,2,"Израда вертикалне денивелације висине 200 мм спуштеног плафона, са израдом додатне челичне потконструкције и облагање влагоотпорним гипс картонским плочама дебљине 12,5 мм, систем RIGIPS или слично. Потконструкцију израдити од носивих профила ЦД 60x27 мм и монтажних поцинкованих профила ЦД 60x27 мм причвршћених Нониус елементима и директним држачима за носиви плафон и обложити гипс картонским плочама, по пројекту и упутству произвођача. Саставе обрадити глет масом и бандаж тракама.\nОбрачун по m1комплет изведене позиције.    ","m1",7.72,null,""]
[null,null,"висине 300 мм","m1",8.6999999999999993,null,""]
[null,null,"висине 120 мм","m1",12.6,null,""]
[null,3,"Израда суфитног венца, (за постављање индиректне расвете) развијене ширине до 50 цм, спуштеног плафона, са израдом додатне челичне потконструкције и облагање гипс картонским влагоотпорним елементима са паралелним и \"В\" жљебовима дебљине 12,5 мм, систем RIGIPS или слично. Потконструкцију израдити од носивих профила ЦД 60x27 мм и монтажних поцинкованих профила ЦД 60x27 мм причвршћених Нониус елементима и директним држачима за носиви плафон и обложити гипс картонским елементима, по пројекту и упутству произвођача. Саставе обрадити глет масом и бандаж тракама.\nОбрачун по m1 комплет изведене позиције.","m1",15,null,""]
[null,4,"Набавка и уградња типских плафонских ревизија димензија 40/40цм. Ревизије типа РИГИПС или сличне уградити на позицијама по пројекту а према упутству произвођача.\nОбрачун по комаду изведене позиције.","ком.",3,null,""]
[null,5,"Постављање поцинкованог-перфорираног заштитника ивица. Профил од поцинкованог лима дебљине 0,5 мм и ширине профила 25x25 мм, поставити по упутству пројектанта.                    Обрачун по m1 заштићене ивице.","m1",47,null,{"$f":"IF(F175=\"\",\"\",E175*F175)","v":""}]
[null,null,"Укупно сувомонтажни радови:",null,null,null,{"$f":"SUM(G169:G175)","v":0}]
[]
[null,9,"Молерско фарбарски радови:"]
[]
[null,"Сви молерскофарбарски радови имају се извести са одговарајућом стручном радном снагом, уз пуну примену савремених алата и механизације намењене овој врсти радова."]
[null,"Сви употребљени материјали, спојна, везивна и заштитна средства морају бити прописаног квалитета, односно да поседују атесте."]
[null,"Радови се морају извести квалитетно у свему  према  важећим прописима, стандардима и техничкој  документацији."]
[null,"Подлога мора бити постојана, чиста, сува и потпуно равна. Пре наносења завршног слоја подлогу припремити у свему према важећим прописима и упутствима произвођача материјала. Покривни премази морају потпуно да покрију подлогу. Код површина где се подлога посебно не припрема извршити гитовање мањих неравнина. Употребљени материјали морају добро да пријањају, да су према својој намени отпорни, да нису  штетни по здравље, да неделују агресивно на материјале  са  којима су у додиру, да обрађене површине имају оштре додирне ивице. Одступања у боји и тону су недопустива."]
[null,"Код температура нижих или виших  од  прописаних, уколико се радови изводе предузети мере за заштиту употребљеног материјала. Мере заштите морају трајати до год постоји потреба за истим. Мере заштите неутичу на већ уговорену цену радова."]
[null,"За све време извођења односно до предаје објекта, извођач је дужан да предузме све потребне мере, како  неби  дошло до оштећења ових радова. Ако ипак и дође  до  оштећења ових радова извођач ће о свом трошку уз сагласност надзорног органа радови извести у пројектовано стање. Приликом извођења својих радова, извођач је дужан да остале врсте радова чува  и сачува од оштећења."]
[null,"Обрачун се врши по јединици мере назначене код сваке позиције радова. Јединачна цена обухвата комплетну израду позиције радова (набавку  основног, везног и материјала  за  заштиту, материјала за глетовање и за импрегнацију,  спољни и унутрашњи транспорт, израду, глачање-шлајфовање, мере заштите све хоризонталне и вертикалне преносе, неопходну радну скелу чишћење и остале активности које су неопходне за квалитетно извођење ових радова).\nОвај опис је саставни део сваке појединачно описане позиције радова и исти неискључује примену важечих прописа у грађевинарству из ове области."]
[null,"  "]
[null,1,"Глетовање фино малтерисаних, као и гипс картонских плафона, дисперзивним китом. Површине обрусити, очистити и извршити неутрализовање. Прегледати и китовати мања оштећења и пукотине. Импрегнирати и превући дисперзивни кит три пута.\nОбрачун по m2 глетоване површине.","m2",70,null,{"$f":"IF(F188=\"\",\"\",E188*F188)","v":""}]
[null,2,"Глетовање фино малтерисаних, као и гипс картонских зидова, дисперзивним китом. Површине обрусити, очистити и извршити неутрализовање. Прегледати и китовати мања оштећења и пукотине. Импрегнирати и превући дисперзивни кит три пута.\nОбрачун по m2 глетоване површине.","m2",150,null,{"$f":"IF(F189=\"\",\"\",E189*F189)","v":""}]
[null,3,"Стругање и глетовање старих зидова и плафона, емулзионим китом. Све површине остругати и опрати, а затим обрусити, очистити и извршити импрегнацију. Прегледати и китовати мања оштећења и пукотине. Китовати и глетовати емулзионим китом први пут. Све површине фино пребрусити и глетовати емулзионим китом други пут.\nОбрачун по m2 глетоване површине.","m2",70,null,{"$f":"IF(F190=\"\",\"\",E190*F190)","v":""}]
[null,4,"Бојење зидова и плафона дисперзивном бојом два пута, а у тону по избору пројектанта.\nОбрачун по m2 заједно са употребом одговарајуће \nпокретне скеле.","m2",220,null,{"$f":"IF(F191=\"\",\"\",E191*F191)","v":""}]
[null,5,"Бојење цеви за грејање радијатор лаком. Пре бојења метала скинути корозију хемијским и физичким средствима, а затим све површине брусити и очистити. На цеви нанети импрегнацију и основну боју, а затим бојити два пута радијатор лаком у тону по избору инвеститора.\nОбрачун по m1 обојених цеви.","m1",68,null,{"$f":"IF(F192=\"\",\"\",E192*F192)","v":""}]
[null,null,"Укупно молерско-фарбарски радови:",null,null,null,{"$f":"SUM(G188:G192)","v":0}]
[]
[null,11,"Разни радови:"]
[]
[null,1,"Изравнавање постојеће подлоге двокомпонентном масом за изравњавање и репарирање типа POLIMAG RV SP, произвођача \"Први мај\" Чачак. Подлогу очистити и нанети одговарајући прајмер, затим излити масу за изравњавање, да чврсто и трајно веже за подлогу.Нанета маса мора да има потребну отпорност на притисак (минимум 30MPa) обзиром да је нанета преко слоја Стироцема СП. Подлогу обрусити и опајати, и премазати одговарајућим прајмером по упутству произвођача.\nОбрачун по м2 обрађене површине.са важећим стандардима.","м2",26.84,null,{"$f":"IF(F197=\"\",\"\",E197*F197)","v":""}]
[null,2,"Постављање пода од ПВЦа у ролнама. ПВЦ под поставити преко претходно припремљене подлоге и то лепљењем целом површином пода. Ободно поставити холкел лајсне које улазе у цену. Тип пода је у ролни типа Noraplan mega acoustic или слично. Боја по избору пројектанта. Винил ролна укупне дим.1,20x15м. Дебљина пода 4мм. Под има високи степен отпорности на хабање. Дезен пода и врста лајсни по избору инвеститора.\nОбрачун по м2 основе пода просторије.","м2",26.84,null,{"$f":"IF(F198=\"\",\"\",E198*F198)","v":""}]
[null,null,"Набавка увозних ПВЦ подова у ролнама високе класе, тип пода је  д=4 мм  типа Noraplan mega acoustic димензија 120x1500 цм. Апсорција звука 20dB. Ниво противклизности R9. Ватро отпорност степена Bfi-S1(B1). За набавку пода су обезбеђена резервисана средства и предвиђена цена је иста за све понуђаче.","м2",32,3400,{"$f":"IF(F199=\"\",\"\",E199*F199)","v":108800}]
[null,3,"Набавка и  постављање профилисане алуминијумске сокле, висине до 12цм, дебљине 22 мм, на саставу пода и зидова, Соклу бира пројектант ентеријера. На сваких 80 цм соклу причврстити за зид, инокс холшрафовима са типловима.\nОбрачун по м1 уграђене сокле.                               ","м1",22.56,null,{"$f":"IF(F200=\"\",\"\",E200*F200)","v":""}]
[null,null,"Укупно разни радови:"]
[]
[]
[]
[]
[null,null,"РЕКАПИТУЛАЦИЈА"]
[]
[null,"I","И ГРАЂЕВИНСКО-ЗАНАТСКИ ПОСЛОВИ (ГЗП)"]
[]
[null,null,"Радови на припреми и рушењу",null,null,{"$f":"G63","v":0}]
[null,null,"Зидарски радови",null,null,{"$f":"G83","v":0}]
[null,null,"Изолатерски радови",null,null,{"$f":"G99","v":0}]
[null,null,"Грађевинска столарија",null,null,{"$f":"G121","v":0}]
[null,null,"Браварски радови",null,null,{"$f":"G134","v":0}]
[null,null,"Стаклорезачки радови",null,null,{"$f":"G139","v":0}]
[null,null,"Керамичарски радови"]
[null,null,"Сувомонтажни радови"]
[null,null,"Молерско-фарбарски радови"]
[null,null,"Разни радови"]
[null,null,"У К У П Н О  "]

{"sheet":"ЕЛЕКТРО","index":1,"n_rows":333,"n_cols":15,"rows_kept":333,"cut":false,"hidden":false,"merged":[[329,2,329,5],[332,2,332,5],[211,1,211,3],[289,2,289,3],[291,2,291,3],[302,1,302,5],[315,1,315,2],[0,0,0,5],[1,0,1,5],[2,0,2,5],[3,0,3,5],[181,1,181,2]]}
["ПРЕДМЕР МАТЕРИЈАЛА И ПРЕДРАЧУН РАДОВА",null,null,null,null,null,44,null,"MAT","POREZ","TRANSP","UKUPNO","NORMA","CENA","SVEGA"]
["ГЛАВНОГ ПРОЈЕКТА АДАПТАЦИЈЕ",null,null,null,null,null,null,null,null,31,5,null,null,300]
["ДЕЛА ОБЈЕКТА ''СЕЛТЕРС'', СТАЦИОНАР II, ВЕЛНЕС У МЛАДЕНОВЦУ"]
["део: Електричне инсталације"]
[]
["Поз.","Опис","Јед.мере","Кол.","Јед.цена","Ук.цена"]
[]
[null,"ОПШТЕ НАПОМЕНЕ"]
[]
[null,"Овим предмером и предрачуном предвиђа се испорука свог материјала наведеног у позицијама и свог ситног неспецифицираног материјала потребног за комплетну израду, уграђивање како је то  наведено у појединим позицијама, испитивање и пуштање у исправан рад, као и довођење у исправно (првобитно) стање свих оштећених места на већ изведеним радовима и конструкцијама."]
[null,"Сав  употребљени материјал мора бити првокласног квалитета и одговарати стандардима.  Сви радови морају  бити изведени  са стручном радном снагом, а у потпуности према Техничким прописима важећим за предметне врсте радова."]
[null,"У цену се урачунава цена свог наведеног материјала у позицијама и цена монтажног неспецифицираног материјала, као и цена радне снаге (без ПДВ-а). Цена укључује и израду све евентуално потребне радионичке документације, испитивање и пуштање у рад свих елемената инсталација наведених у позицијама."]
[null,"Наведени типови и произвођачи појединих делова опреме или инсталационог материјала нису обавезни. Извођач може уградити и другу опрему, односно материјал, али под условом да тај има исте електротехничке и конструктивне карактеристике као и наведени, а што претходно потврђује и оверава стручно лице-надзорни орган. "]
[]
["1.","КАБЛОВИ, ПНК И ЦЕВИ"]
[]
["1.1.","Испорука, полагање и повезивање напојног кабла са бакарним проводницима, изолацијом од умреженог полиетилена и плаштом од слабо-гориве безхалогене мешавинена бази полиолефина за инсталације осветљења и прикључница. Кабл повезује ГРО са РО-Р5 у приземњу. Полаже се у у зид или директно на зид или плафон испод облоге зидова или у простору спуштеног плафона, мањим делом кроз инсталационе цеви, са свим рачвањима и повезивањима."]
["-","N2XH-J      5x16 mm2","m",40,null,{"$f":"D18*E18","v":0}]
[]
["1.2.","Испорука и полагање инсталационих каблова са бакарним проводницима, изолацијом од умреженог полиетилена и плаштом од слабо-гориве безхалогене мешавинена бази полиолефина за инсталације осветљења и прикључница. Каблови се полажу у зид или директно на зид или плафон испод облоге зидова или у простору спуштеног плафона, мањим делом кроз инсталационе цеви, са свим рачвањима и повезивањима."]
["-","N2XH-J    5x6 mm2","m",60]
["-","N2XH-J    5x4 mm2","m",20]
["-","N2XH-J    5x2,5 mm2","m",50]
["-","N2XH-J    5x1,5 mm2","m",80]
["-","N2XH-Ј    3x2,5 mm2","m",130]
["-","N2XH-Ј    3x1,5 mm2","m",120,null,null,null,null,30,{"$f":"I26*$J$2/100","v":9.3000000000000007},{"$f":"I26*$K$2/100","v":1.5},{"$f":"SUM(I26:K26)","v":40.799999999999997},0.09,{"$f":"M26*$N$2","v":27},{"$f":"L26+N26","v":67.8}]
["-","N2XH    2x1,5 mm2","m",30]
[]
["1.3.","Испорука и постављање у завршни слој пода флексибилних црева од полиамида, димензија унутрашњег пречника мин: "]
["-","Ø19мм ","м",15,null,{"$f":"IF(E30=\"\",\"\",D30*E30)","v":""}]
[]
["1.4.","Испорука и постављање на зид флексибилног пластифицираног металног црева (''сапа''), димензија унутрашњег пречника мин: "]
["-","Ø23мм ","м",10,null,{"$f":"IF(E33=\"\",\"\",D33*E33)","v":""}]
[null,null,null,null,null,"-------------------------------------------------------------------------------------------------------------------------------"]
[null,"УКУПНО  1."]
[null,null,null,null,null,"-------------------------------------------------------------------------------------------------------------------------------"]
[]
[]
[]
["2.","РАЗВОДНИ ОРМАНИ"]
[]
["2.1.","Испорука и монтажа металног назидног разводног ормана ознаке РО-Р5. Димензије прмана су цца 600х800х200мм. По потреби орман уградити у грађевинску нишу (плакар) са декоративним дрвеним вратима. Орман је урађен у механичкој заштити ИП 40, са бравом и кључем."]
[null,"Орман димензионисати у складу са опремом у њему тако да постоји 25% резервног слободног простора. Урадити прописно шемирање ормана. Извршити трајно и јасно обележавање ормана и уграђене опреме. Опрема је у рангу квалитета произвођача Schneider Electric (SE) или Legrand."]
[null,"Плаћа се комплет испоручено, постављено и испитано за исправан рад заједно са следећом опремом:"]
[]
[null,"-  1  ком   Трополна гребенаста склопка 80 A, 500 V, 1-0 (уградња на врата)"]
[null,"-  1  ком   Трополна гребенаста склопка 63 A, 500 V, 1-0 (уградња на врата)"]
[null,"-  1  ком   Трополна гребенаста склопка 40 A, 500 V, 1-0 (уградња на врата)"]
[null,"-  3  ком   Трополна гребенаста склопка 25 A, 500 V, 1-0 (уградња на врата)"]
[null,"-  4  ком   Једнополна гребенаста склопка 25 A, 250 V, 1-0 (уградња на врата)"]
[null,"-  2  ком   Једнополна гребенаста склопка 16 A, 250 V, 1-0 (уградња на врата)"]
[null,"-  1  ком   Заштитни уређај диференцијалне струје (ЗУДС), In=80A, Idif=0,3A, четворополни. Сличан типу ID, произвођача SE"]
[null,"-  1  ком   Заштитни уређај диференцијалне струје (ЗУДС), In=16A, Idif=30мA, четворополни. Сличан типу ID, произвођача SE"]
[null,"-  1  ком   Заштитни уређај диференцијалне струје (ЗУДС), In=25A, Idif=30мA, четворополни. Сличан типу ID, произвођача SE"]
[null,"-  4  ком   Аутоматски осигурач 6 A, 1пол, ''C''. Сличан типу C60H, произвођача SE"]
[null,"-  11  ком   Аутоматски осигурач 10 A, 1пол, ''B''. Сличан типу C60H, произвођача SE"]
[null,"-  5  ком   Аутоматски осигурач 16 A, 1пол, ''B''. Сличан типу C60H, произвођача SE"]
[null,"-  1  ком   Аутоматски осигурач 16 A, 1пол, ''C''. Сличан типу C60H, произвођача SE"]
[null,"-  3  ком   Аутоматски осигурач 20 A, 1пол, ''C''. Сличан типу C60H, произвођача SE"]
[null,"-  3  ком   Аутоматски осигурач 25 A, 1пол, ''C''. Сличан типу C60H, произвођача SE"]
[null,"-  1  ком   Аутоматски осигурач 40 A, 3пол, ''C''. Сличан типу C60H, произвођача SE"]
[null,"-  3  ком   Сигнална LED светиљка fi22, 230VAC, зелена (уградња на врата)"]
[null,"- 3  ком   Комбиновани заштитни уређај - аутоматски прекидач 10А + зашт.уређај диференцијалне струје (ЗУДС - ФИД склопка) Idif=30mA, 2-полни. Сличан типу DPN N Vigi, произвођача SE"]
[null,"- 20  ком   Комбиновани заштитни уређај - аутоматски прекидач 16А + зашт.уређај диференцијалне струје (ЗУДС - ФИД склопка) Idif=30mA, 2-полни. Сличан типу DPN N Vigi, произвођача SE."]
[null,"- 1 ком. Tрополни контактор 32А (категорија АC3), управљачког напона 230Vac, са помоћним контактима 1NO+1NC"]
[null,"-  уводнице, бакарне сабирнице, редне стезаљке, потпорни изолатори, "]
[null,"   проводници за шемирање, шеме, опоменске таблице, натписне"]
[null,"   плочице и сав ситан монтажни материјал."]
[null,null,"комплет",1]
[]
["2.2.","Испорука и монтажа 3 аутоматска прекидача In=80А, карактеристике ''С'' у постојећи главни разводни орман (ГРО) у приземљу објекта. Комплет са повезивањем напојног вода. Сличан типу C120, произвођача SE"]
[null,null,"комплет",1]
[]
[]
[null,"УКУПНО  2.",null,null,null,null,{"$f":"F75","v":0}]
[null,null,null,null,null,"-------------------------------------------------------------------------------------------------------------------------------"]
[]
["3.","ИНСТАЛАЦИОНИ МАТЕРИЈАЛ"]
[]
["3.1.","Испорука и постављање инсталационог материјала у ПВЦ кутијама у зиду од опеке, или гипсаном зиду и повезивање. Све прекидаче поставити на висини 1,4 м од пода, а прикључнице на 0,4 м од пода или према подацима датим у графичкој документацији. За технолошке прикључнице монтажну висину усагласити према условима из технолошког пројекта и захтева прозвођача опреме која се уграђује."]
[null,"Инсталациони материјал је типа Prestige Line и MODE, произвођача ALING или сличан."]
[]
[null,"Прикључнице:"]
["3.1.1.","Двополна прикључница ''šuko II'' 16А/250Vac, са порцеланским језгром.","ком",2]
[]
["3.1.2.","Двополна прикључница ''šuko II'' 16А/250Vac, са поклопцем и  порцеланским језгром.","ком",8]
[]
["3.1.3.","Модуларни сет ознаке [П1] састављен од:"]
[null,"дознa, прирубницa и маскa (7М),"]
[null,"2 x ''šuko II'' са заштитним контактом, 16A, 250 V (2M)"]
[null,"+ поз. 6.1. + поз. 6.5."]
[null,"1 x поклопац маске (1M)","комплет",2]
[]
["3.1.3.","Модуларни сет ознаке [П2] састављен од:"]
[null,"дознa, прирубницa и маскa (7М),"]
[null,"2 x ''šuko II'' са заштитним контактом, 16A, 250 V (2M)"]
[null,"+ поз. 6.1. + поз. 6.12."]
[null,"1 x поклопац маске (1M)","комплет",1]
[]
[null,"Прекидачи:"]
["3.1.4.","Модуларни сет ознаке [M1] састављен од:"]
[null,"дознa, прирубницa и маскa (3М),"]
[null,"2 х тастер склопка једнополна, 10 A, 250 V, (1М)"]
[null,"1 х тастер склопка једнополна, 16 A, 250 V, (1М)","комплет",4]
[]
["3.1.5.","Модуларни сет ознаке [M2] састављен од:"]
[null,"дознa, прирубницa и маскa (2М),"]
[null,"2 х тастер склопка једнополна, 10 A, 250 V, (1М)","комплет",1]
[]
["3.1.6.","Модуларни сет ознаке [M3] састављен од:"]
[null,"дознa, прирубницa и маскa (2М),"]
[null,"1 х тастер склопка једнополна, 10 A, 250 V, (2М)","комплет",4]
[]
["3.1.7.","Модуларни сет ознаке [M4] састављен од:"]
[null,"дознa, прирубницa и маскa (3М),"]
[null,"1 х тастер склопка једнополна, 10 A, 250 V, (2М)"]
[null,"1 х тастер склопка једнополна, 16 A, 250 V, (1М)","комплет",2]
[]
["3.1.8.","Модуларни сет ознаке [M5] састављен од:"]
[null,"дознa, прирубницa и маскa (3М),"]
[null,"3 х тастер склопка једнополна, 10 A, 250 V, (1М)","комплет",1]
[]
["3.1.9.","Модуларни сет ознаке [M6] састављен од:"]
[null,"дознa, прирубницa и маскa (3М),"]
[null,"3 х тастер склопка једнополна, 10 A, 250 V, (1М)"]
[null,"2 х тастер склопка једнополна, 16 A, 250 V, (1М)","комплет",1]
[]
[null,"ОПШТА НАПОМЕНА: УКОЛИКО ИЗВОЂАЧ НАБАВЉА ОПРЕМУ ДРУГОГ ПРОИЗВОЂАЧА ДУЖАН ЈЕ ДА ПРЕ НАРУЧИВАЊА ДОБИЈЕ САГЛАСНОСТ НАДЗОРНОГ ОРГАНА, КАО И ДА ЈЕ УСАГЛАСИ СА ОПРЕМОМ СПЕЦИФИЦИРАНОМ У ПРЕДМЕРУ (ТАЧКА 3.1)."]
[]
["3.2.","На местима означеним на цртежима повезивање монофазног електричног извода (ђакузи, хидромасажне каде, лед траке, звездано небо, спољне клима јединице, вентилатори итд.). Висину и начин прикључка усагласити у складу са потрошачима који се прикључују.  ","ком",2]
[]
["3.3.","На местима означеним на цртежима повезивање трофазног електричног извода (спољне клима јединице). Висину и начин прикључка усагласити у складу са уређајима који се постављају.  ","ком",1]
[]
["3.4.","Додатни и непредвиђени радови радови и остали ситан монтажни материјал.","паушал.",1]
[]
[null,"НАПОМЕНА: МЕЂУСОБНО ПОВЕЗИВАЊЕ УНУТРАШЊИХ У СПОЉАШЊИХ КЛИМА ЈЕДИНИЦА, КАО И ПОВЕЗИВАЊЕ СА КОНТРОЛЕРИМА ПРЕДВИЂЕНО ЈЕ МАШИНСКИМ ДЕЛОМ ПРОЈЕКТА. ИСПОРУКА КАБЛА ЈЕ ПРЕДВИЂЕНА ТАЧКОМ 1.2"]
[]
[null,"УКУПНO  3.",null,null,null,null,{"$f":"F138","v":0}]
[]
[]
["4.","СВЕТИЉКЕ"]
[]
[null,"Овај део предмера и предрачуна обухвата: испоруку, монтажу и повезивање ниже описаних светиљки укључујући:"]
[null,"-испоруку и постављање куке за вешање или одговарајућих типлова за причвршћавање светиљке на заваници или зиду"]
[null,"-испорука, монтажа и повезивање помоћу стезаљки на већ изведену инсталацију светиљке како је то описано у појединим позицијама"]
[null,"-постављање у светиљке, сијалице, односно флуо цеви и стартера"]
[null,"-прање, брисање и намештање на светиљке стаклене или пластичне кугле, звона или поклопца, који су саставни део светиљке"]
[null,"-испитивање и стављање под напон"]
[null,"-замену свих сијалица, флуо цеви и стартера који не буду исправни у тренутку техничког пријема инсталације"]
[null,"-флуоресцентне светиљке морају да буду компензоване на фактор снаге cos fi > 0,95"]
[]
[null,"Испорука и монтажа на месту означеном на цртежима на плафон или зид светиљке комплет са прибором за монтажу, грлом, предспојним справама и сијалицама одговарајуће снаге."]
[null,"Плаћа се испоручено и припремљено за исправан рад. Светиљке су по избору пројектанта ентеријера, а следећих карактеристика:"]
[]
["4.1.","- Светиљка означена са Пс1"]
[null,"Уградна линијска флуо светиљка за формирање дужих линијских форми, 1х28W, T5. Степен заштите IP 54. Тип SLIM LINE - BUCK или слична по избору пројектанта ентеријера.","ком",2]
[null,"Набавка светиљке SLIM LINE - BUCK 128W DO, T5, IP54, комплет са електронским предспојним прибором и флуо извором светла 28W/840, 40000К, произв. BUCK. Кућиште светиљке је израђено од екструдираног алуминијумског профила, а дужина светиљке је 1185мм. За набавку светиљки су обезбеђена резервисана средства и предвиђена цена је иста за све понуђаче.","ком",2,12500,{"$f":"D157*E157","v":25000}]
[]
[]
["4.3.","- Светиљка означена са Пс3"]
[null,"Уградна линијска флуо светиљка 1х39W, T-5. Степен заштите IP 54. Тип SLIM LINE - BUCK или слична по избору пројектанта ентеријера.","ком",6]
[null,"Набавка светиљке SLIM LINE - BUCK 139W DO, T5, IP54, комплет са електронским предспојним прибором и флуо извором светла 39W/840, 40000К, произв. BUCK. Кућиште светиљке је израђено од екструдираног алуминијумског профила, а дужина светиљке је 900мм. За набавку светиљки су обезбеђена резервисана средства и предвиђена цена је иста за све понуђаче.","ком",6,11700,{"$f":"D162*E162","v":70200}]
[]
["4.4.","- Светиљка означена са Пс4"]
[null,"Уградна линијска флуо светиљка 1х80W, T-5. Степен заштите IP 42. Тип SLIM LINE - BUCK или слична по избору пројектанта ентеријера.","ком",3]
[null,"Набавка светиљке SLIM LINE - BUCK 180W DO, T5, IP42, комплет са електронским предспојним прибором и флуо извором светла 80W/840, 40000К, произв. BUCK. Кућиште светиљке је израђено од екструдираног алуминијумског профила, а дужина светиљке је 1485мм. За набавку светиљки су обезбеђена резервисана средства и предвиђена цена је иста за све понуђаче.","ком",3,12500,{"$f":"D166*E166","v":37500}]
[]
["4.5.","- Светиљка означена са С1"]
[null,"Уградна компакт флуо светиљка кружног облика 2х18W, TC-DEL, са сјајним растером и поклопцем од опалног стакла. Степен заштите IP 54. Тип ADRIA - BUCK или слична по избору пројектанта ентеријера.","ком",3]
[null,"Набавка светиљке ADRIA - BUCK 2x18W DO, T5, IP54,  комплет са електронским предспојним прибором и флуо извором светла 2x18W, произв. BUCK. За набавку светиљки су обезбеђена резервисана средства и предвиђена цена је иста за све понуђаче.","ком",3,6200,{"$f":"D170*E170","v":18600}]
[]
["4.6.","- Светиљка означена са Пп1"]
[null,"Надграднo/уградна противпанична флуо светиљка, са једним флуо извором од 8W, са сопственим акумулатором аутономије 3h, у приправном споју. Степен заштите IP 42-класа II, слична типу S8 произвођача LEGRAND. Светиљка је предвиђена за монтажу на зид, на плафон или у спуштени плафон. У зависности од плана евакуације на призматичну капу залепити стрелицу са одрећеним смером кретања или натписом ИЗЛАЗ.","ком",3]
[null,"Набавка светиљке HELIOS - BUCK 8W, IP42, SE,   комплет са извором светла, произв. BUCK-Avex. Светиљка је израђена од V2 самогасивог halogen free поликарбоната. За набавку светиљки су обезбеђена резервисана средства и предвиђена цена је иста за све понуђаче.","ком",3,2850,{"$f":"D174*E174","v":8550}]
[]
[null,null,null,null,null,"-------------------------------------------------------------------------------------------------------------------------------"]
[null,"УКУПНО  4.",null,null,null,{"$f":"SUM(F156:F176)","v":159850}]
[null,null,null,null,null,"-------------------------------------------------------------------------------------------------------------------------------"]
[]
[null,"ОПШТА НАПОМЕНА: ПРЕ НАРУЧИВАЊА СВЕТИЉКИ, ИЗВОЂАЧ ЈЕ ДУЖАН ДА СА ПРОЈЕКТАНТИМА ЈОШ ЈЕДНОМ УСАГЛАСИ ТИПОВЕ СВЕТИЉКИ. НАКОН ОБАВЉЕНОГ УСАГЛАШАВАЊА, ИЗВОЂАЧ ЈЕ ОБАВЕЗАН ДА БЕСПЛАТНО ДОСТАВИ НА ОДОБРЕЊЕ ПО ЈЕДАН УЗОРАК ЗА СВАКИ ТИП СВЕТИЉКЕ."]
[]
["5.","ИНСТАЛАЦИЈА ЗАШТИТЕ ОД ЕЛЕКТРИЧНОГ УДАРА"]
[]
[]
["5.1.","Испоручити и на место означеном на цртежу, на 30 cм од пода у зиду мокрог чвора уградити кутију за изједначење потенцијала ПС-49. Кутија је снабдевена пластичним поклoпцем и опремљена је са прикључним сказаљкама за проводник до 35 мм² и 6 прикључних места за прикључак водова до 6 мм²."]
[null,"Плаћа се испорука и уградња.","ком",1]
[]
["5.2.","Проводником H07Z-U 4 мм² испод малтера у зиду, у поду или простору спуштеног плафона, извести од кутије ПС изводе за повезивање металних делова у мокром чвору који нису саставни делови електричних уређаја и то посебно:"]
[null,"-за одводну цев умиваоника,"]
[null,"-за канализациону цев,"]
[null,"-за водоводну цев (уколико није пластична),"]
[null,"-за каду,"]
[null,"Просечна дужина по једном изводу је 7 м."]
[null,"Спајање на цевоводе се врши помоћу шелни, оловних подметача дебљине 3 мм испод целе шелне, завртњем М6 са матицом и озубљеним подметачем и кабловском стопицом."]
[null,"Прикључак за цевоводе вршити у зиду тако да га прекрије малтер односно керамика којом се зид облаже."]
[null,"Прикључак за цевоводе вршити у зиду тако да га прекрије малтер односно керамика којом се зид облаже."]
[null,"Укупан број извода по једној кутији је 5."]
[null,"Потребан материла по једној кутији је:"]
[null,"-проводник  H07Z-UP 4 мм² - 35  m"]
[null,"Плаћа се за сав рад и материјал по једној кутији.","комплет",1]
[]
["5.3.","Испоручити и од заштитне сабирнице у разводном орману до кутија ПС у мокром чвору положити проводник H07Z-U 4 мм², положен кроз цев уграђену испод малтера (у зиду), у зид од опеке испод облоге зидова или у простору спуштеног плафона."]
[null,"Просечна дужина проводника H07Z-U 4 мм²  по једној кутији  ПС je 20 м."]
[null,"Плаћа се за сав рад и материјал по једној кутији ПС, заједно са повезивањем у њима и на заштитним сабирницама у припадајућем орману.","комплет",1]
[]
["5.4.","Испорука свог потребног материјала и израда галванских спојева на ПНК. Галванску везу урадити бакарном плетеницом или проводником H07Z-UP 4 мм²  1x4 mm² дужине 10 cm са одговарајућим бакарним папучицама и еластичним подметачима.","ком",3]
[]
[null,null,null,null,null,"-------------------------------------------------------------------------------------------------------------------------------"]
[null,"УКУПНО 5."]
[null,null,null,null,null,"-------------------------------------------------------------------------------------------------------------------------------"]
[]
["6.","ТЕЛЕКОМУНИКАЦИОНЕ ИНСТАЛАЦИЈЕ (СЛАБА СТУЈА)"]
[]
["A.","РАЧУНАРСКА МРЕЖА"]
[]
["6.1.","Рачунарска утичница 1 x RJ-45 категорије 6  (1М)"]
[null,"Испорука, уградња и повезивање у оквиру модуларног сета специфицираног у тачки 3.1.","ком",2]
[]
["6.2.","Бакарни парични кабл FTP кабл кат. 6E, без халогена. Испорука, уградња и повезивање до припадајућег река.","м",45]
[]
["6.3.","Испорука и постављање неуправљивог Еthernet switch-а са 5 портова. Сличан типу TP-Link TL-SG1005D 5-port Gigabit 10/100/1000Mb/s Desktop Switch, wirespeed 10Gb/s bandwidth","ком",1]
[]
["6.4.","Приводни бакарни парични кабл FTP кабл cat6E, 4x2x0,5, без халогена. Испорука, уградња и повезивање на постојећу рачунарску мрежу.","м",40]
[]
["6.5.","Повезивање новоизведене рачунарске мреже на постојећу рачунарску мрежу објекта и њено подешавање за функционалан рад.","паушал.",1]
[]
["Б.","ТЕЛЕФОНСКЕ ИНСТАЛАЦИЈЕ "]
[]
["6.6.","Tелефонска утичница RJ-12 6/2   (1М)"]
[null,"Испорука, уградња и повезивање у оквиру модуларног сета специфицираног у тачки 3.1.","ком",2]
[]
["6.7.","Кабл  JH(St)H 1x2x0,6мм за повезивање телефонских прикључницама са разводним телефонским орманом."]
[null,"Испорука, уградња и повезивање.","м",30]
[]
["6.8.","Инсталационе пластичне цеви од безхалогених елемената."]
[null,"Испорука, уградња и повезивање."]
["-","цев fi16","ком",30]
[]
["6.9.","Телефонски разводни орман РТО-1 са реглетом 1х10. Уградња у зид."]
[null,"Испорука, уградња и повезивање.","ком",1]
[]
["6.10.","Приводни телефонски кабл  JH(St)H 5x2x0,6мм за повезивање разводне кутије са постојећом тел.централом."]
[null,"Испорука, уградња и повезивање.","м",40]
[]
["6.11.","Повезивање новоизведене телефонске инсталације на постојећу телефонску централу објекта и њено подешавање за функционалан рад.","паушал.",1]
[]
["В.","ИНСТАЛАЦИЈА ОЗВУЧЕЊА"]
[]
["6.12.","5 каналмо појачало - миксер снаге 70W, уграђен RF тјунер, USB и MP3 плејер. 70/100V ниске импедансе 4-16ohms, улаза за 3 микрофона и 2 аuxiliary улаза. Дијапазон учестаности 60-15000Hz, S/N Ration>73dB, потрошња 140W. Контрола сваког улазног канала. BAS control (100Hz ±10dB), Тremble control (12kHz ±10dB). Напајање 220-240VAC, 50Hz. Слично типу AP-200M произвођача Tkokopa."]
[null,"Испорука, уградња и повезивање.","ком",1]
[]
["6.13.","Kабл LiHCH 4x1,5 mm², ''halogen free''"]
[null,"Испорука, уградња и повезивање.","м",60]
[]
["6.14.","Kабл LiHCH 2x1,5 mm², ''halogen free''"]
[null,"Испорука, уградња и повезивање.","м",100]
[]
["6.15.","Уградни плафонски звучник 1,5W,  5''. Дијапазон учестаности: full frequency. Тежина cca 0,5kg. "]
[null,"Испорука, уградња и повезивање за исправан рад.","ком",6]
[]
["6.16.","Зидни модул (регулатор) за контролу јачине звука звучника (до 6W). Испорука, уградња и повезивање за исправан рад.","ком",4]
[]
["Г.","ТВ ИНСТАЛАЦИЈЕ "]
[]
["6.17.","TV утичница завршна.      (1М)"]
[null,"Испорука, уградња и повезивање у оквиру модуларног сета специфицираног у тачки 3.1.","ком",1]
[]
["6.18.","Коаксијални кабл RG 6  ''halogen free''"]
[null,"Испорука, уградња и повезивање.","м",60]
[]
["6.19.","Испорука и постављање трограног (1 улаз, 3 излаза) ТВ разделника - сплитера, комплет уграђено са потребном конекторизацијом.","ком",1]
[]
["6.20.","Повезивање новоизведене ТВ инсталације на постојећу КДС инсталацију објекта и њено подешавање за функционалан рад.","паушал.",1]
[]
[null,null,null,null,null,"-------------------------------------------------------------------------------------------------------------------------------"]
[null,"УКУПНО 6."]
[null,null,null,null,null,"-------------------------------------------------------------------------------------------------------------------------------"]
[]
[]
[]
["7.","ДЕМОНТАЖЕ"]
[]
["7.1.","Демонтажа постојећих електричних инсталација јаке и слабе струје (разводни орман, пластичне каналице, светиљке, прекидачи, прикључнице, каблови и остало). Демонтирану опрему комисијски предати Инвеститору и одложити на место које одреди Инвеститор."]
[null,null,"паушал."]
[]
["8.","ПОСЕБНИ ТРОШКОВИ ИНВЕСТИТОРА"]
[]
[]
["8.1.","Преглед и испитивање свих електричних инсталација јаке и слабе струје, давање атеста и гарантних листова и пуштање у рад."]
[null,null,"паушално"]
["8.2.","Израда техничке документације (елабората) изведених радова."]
[null,null,"паушално"]
[null,null,null,null,null,"-------------------------------------------------------------------------------------------------------------------------------"]
[null,"УКУПНО  8."]
[null,null,null,null,null,"-------------------------------------------------------------------------------------------------------------------------------"]
[]
[]
[]
[]
[]
[]
[]
[null,"Р Е K A П И T У Л A Ц И J A"]
[]
[]
[null,"1. КАБЛОВИ, ПНК И ЦЕВИ"]
[]
[null,"2. РАЗВОДНИ ОРМАНИ"]
[]
[null,"3. ИНСТАЛАЦИОНИ МАТЕРИЈАЛ"]
[]
[null,"4. СВЕТИЉКЕ"]
[]
[null,"5. ИНСТАЛАЦИЈА ЗАШТИТЕ ОД ЕЛЕКТРИЧНОГ УДАРА"]
[]
[null,"6. ТЕЛЕКОМУНИКАЦИОНЕ ИНСТАЛАЦИЈЕ (СЛАБА СТРУЈА)"]
[]
[null,"7. ДЕМОНТАЖЕ"]
[]
[null,"8. ПОСЕБНИ ТРОШКОВИ ИНВЕСТИТОРА"]
[]
[]
[null,null,null,null,null,"-------------------------------------------------------------------------------------------------------------------------------"]
[null,"УКУПНО:"]
[null,null,null,null,null,"-------------------------------------------------------------------------------------------------------------------------------"]
[]
[]
[]
[]
[null,null,"ОДГОВОРНИ ПРОЈЕКТАНТ"]
[null,"септембар. 2012."]
[]
[null,null,"Ненад Радишић, дипл.инж.eл."]

{"sheet":"ВиК","index":2,"n_rows":137,"n_cols":7,"rows_kept":137,"cut":false,"hidden":false,"merged":[[135,5,135,6],[125,1,125,6],[137,5,137,6],[1,0,1,6],[2,0,2,6],[6,1,6,6],[16,1,16,6],[38,1,38,6],[77,1,77,6]]}
[]
["PREDMER I PREDRAČUN RADOVA"]
["UNUTRAŠNJA INSTALACIJA VODOVODA I KANALIZACIJE"]
[]
["pos","VRSTA RADOVA","JED. MERE","KOLIČINA","x","JED. CENA","UKUPNA CENA"]
[]
["I","GRAĐEVINSKI RADOVI"]
[]
[1,"Izrada otvora u betonskoj konstrukciji za prolaz vodovodnih i kanalizacionih vertikala. U cenu uračunati i odgovarajuće zaptivanje prostora između zidova otvora i instalacije, posle montaže instalacije."]
[null,"Obračun po izvedenom otvoru.","kom",6,"x"]
[]
[2,"Šlicovanje (razbijanje) betonske podne konstrukcije (sa dovođenjem u prvobitno stanje po završetku radova) za postavljanje PVC fekalne kanalizacije i PP-R vodovodne instalacije. Šlicovanje vršiti u širini do 40 cm."]
[null,"Obračun po m2 šlicovane i ponovo betonirane površine.","m2",{"$f":"0.4*(D22+D23+D24+D25)","v":12.8},"x"]
[]
["I","Ukupno građevinski radovi"]
[]
["II","KANALIZACIJA (tehnička i fekalna)"]
[]
[3,"Nabavka, dopremanje i montaža cevi od PVC-a, za instalaciju fekalne i tehničke kanalizacije. Cevi ispod svakog mufa pričvrstiti gvozdenim ram-šelnama. O tavanicu cev obesiti oko svakog mufa uzengijom od pljošteg gvožđa 3/40 mm. Sva potrebna štemovanja i probijanja zidova od opeke i betona ne naplaćuju se posebno već su obuhvaćena cenom dužnom metra cevi. Nedovršene delove mreže, veze za vertikale ili sanitarne uređaje do njihovog ugrađivanja zatvoriti privremenim drvenim čepovima odgovarajućeg prečnika. Postavljenu cev isprati i ispitati na vodonepropusnost u prisustvu nadzornog organa."]
[null,"Obračun po metru dužnom, ugrađene i primljene cevi."]
[null,"STANDARD: SPRS-EN 1451 ... za unutrašnju kanalizaciju."]
[null,"PVC DN 160 mm","m",10,"x"]
[null,"PVC DN 110 mm","m",10,"x"]
[null,"PVC DN 75 mm","m",7,"x"]
[null,"PVC DN 50 mm","m",5,"x"]
[]
[]
[4,"Nabavka, dopremanje i montaža PVC podnih slivnika sa poniklovanom rešetkom."]
[null,"Obračun po montiranom slivniku."]
[null,"STANDARD: SPRS-EN 1451 ... za unutrašnju kanalizaciju."]
[null,"DN 50 mm","kom.",1,"x"]
[]
[5,"Izvršiti hidrauličko ispitivanje postavljene kanalizacione mreže na vododrživost."]
[null,"Obračun po dužnom metru ispitane cevi.","m",{"$f":"D25+D24+D23+D22","v":32},"x"]
[]
[]
["II","Ukupno kanalizacija"]
[]
["III","VODOVOD (unutrašnja instalacija sanitarnog vodovoda)"]
[]
[6,"Nabavka, dopremanje i montaža vodovodnih cevi PP-R, za radni pritisak od 10 bara, za unutrašnju instalaciju sanitarnog i tehnološkog vodovoda. Uvozne cevi moraju odgovarati JUS-u, odnosno moraju imati atest o tehničkoj ispravnosti. Cevi ce spajaju sučeonim zavarivanjem u svemu prema preporukama proizvođača cevi. Cevi se montiraju uglavnom skriveno u zidu (unutar mokrih čvorova), a delimično vidno u prostoru spuštenog plafona i instalacionim koridorima). Cevi se izoluju filcom radi sprečavanja kondenza. Celokupna vodovodna instalacija pre zatvaranja žljebova i malterisanja mora biti ispitana na pritisak od 12 bara, prema važećim propisima. "]
[null,"Obračun po m ugrađene i primljene cevi."]
[null,"STANDARD: SPRS ISO -EN15874"]
[null,"Ø 32 mm (Ø 5/4'')","m",4,"x"]
[null,"Ø 25 mm (Ø 1'')","m",3,"x"]
[null,"Ø 20 mm (Ø 3/4'')","m",17,"x"]
[null,"Ø 15mm (Ø ½'')","m",17,"x"]
[]
[7,"Nabavka, transport i montaža ravnih propusnih mesinganih ventila sa točkićem. Ventili moraju odgovarati PP-R."]
[null,"Obračun po komadu montiranog ventila."]
[null,"Ø 32 mm (Ø 5/4'')","kom.",1,"x"]
[null,"Ø 25 mm (Ø 1'')","kom.",1,"x"]
[null,"Ø 20 mm (Ø 3/4'')","kom.",1,"x"]
[null,"Ø 15mm (Ø ½'')","kom.",2,"x"]
[]
[8,"Nabavka, transport i montaža EK ventila sa hromiranom kapom. Ventili moraju odgovarati PP-R cevima."]
[null,"Obračun po komadu montiranog ventila."]
[null,"Ø 13 mm (Ø 1/2'' / 3/8'')","kom.",5,"x"]
[]
[]
[9,"Priključenje interne instalacije vodovoda (unutrašnja sanitarna: hladna, topla i cirkulacija, termalna) na interni razvod. U cenu uračunati fitinge potrebne za priključenje."]
[null,"Obračun po izvedenom priključku.","kom.",6,"x"]
[]
[]
[10,"Ispitivanje montirane instalacije vodovoda na vododržljivost prema važećim propisima. Potrebnu količinu vode za isptivanje  obezbeđuje izvođač."]
[null,"Obračun po dužnom metru ispitane cevi.","m",{"$f":"D44+D45+D46+D47","v":41},"x"]
[]
[]
[{"$f":"A65+1","v":11},"Dezinfekcija montirane i ispitane vodovodne mreže u objektu prema važećim propisima."]
[null,"Obračun po dužnom metru cevovoda.","m",{"$f":"D66","v":41},"x"]
[]
[{"$f":"A69+1","v":12},"Ispitivanje kvaliteta vode iz novomontirane mreže, a posle izvršene dezinfekcije."]
[null,"Obračun po broju uzoraka.","kom",2,"x"]
[]
["III","Ukupno vodovod"]
[]
[]
["IV","SANITARNI OBJEKTI I PRIBOR"]
[]
[13,"Nabavka i montaža konzolne klozetske šolje:"]
["a)","konzolna šolja (po izboru projektanta enterijera)od fajansa bele boje,  sa gumenim umetkom između šolje i zida, šolja mora odgovarati standardu JUS.U.Nr.120;"]
["b)","klozetska daska sa poklopcem od pune ABS plastike, snabdevenu sa donje strane sa najmanje tri gumena odbojnika, i mehanizmom za usporeno zatvaranje;"]
["c)","pvc cev koja se umeće između izlivnog grla šolje i kanalizacione cevi u zidu;"]
["d)","ugradni vodokotlić Geberit duofix u kompletu sa svim potrebnim priborom i dvostepenim prekidačem po izboru projektanta enterijera."]
[null,"Obračun po montiranoj klozetskoj šolji."]
[null,"tip ''Konzolna''","kom",1,"x"]
[]
[]
[{"$f":"A80+1","v":14},"Nabavka i montaža hromiranog dražača rolo toalet papira tipa tork t3 ili slično ."]
[null,"Obračun po montiranom dražaču.","kom",{"$f":"D86","v":1},"x"]
[]
[]
[{"$f":"A89+1","v":15},"Montaža komplet umivaonika od fajansa širine 550 mm, koji odgovara standardu JUS.U.N5.110. Školjka mora biti snabdevena otvorom za odvod , prelivom i čepom za zatvaranje odvodnog otvora. Ispod školjke umivaonika montirati hromirani sifon koji mora odgovarati standardu JUS.M.C5.810 i spojiti ga sa kanalizacionom cevi u zidu preko gumenog dihtunga. Spoj prekriti niklovanom rozetom. Kačenje školjke izvršiti putem žabica ili šrafova uz prethodnu ugradnju plastičnih tiplova."]
[null,"Obračun po montiranom umivaoniku.","kom",2,"x"]
[]
[]
[{"$f":"A93+1","v":16},"Nabavka komplet umivaonika od fajansa širine 550 mm, koji odgovara standardu JUS.U.N5.110. Školjka mora biti snabdevena otvorom za odvod , prelivom i čepom za zatvaranje odvodnog otvora. Nbaviti i hromirani sifon koji mora odgovarati standardu JUS.M.C5.810 i gumeni dihtung za ugradnju u kompletu sa hromiranom rozetom. Za poziciju su predviđena rezervisana sredstva te je ponuđena cena ista za sve ponuđače."]
[null,"Obračun po nabavljenom umivaoniku.","kom",2,"x",13500,{"$f":"D98*F98","v":27000}]
[]
[]
[{"$f":"A97+1","v":17},"Montaža niklovane baterije za umivaonik."]
[null,"Obračun po montiranoj bateriji."]
[null,"stojeća - za toplu i hladnu vodu.","kom",{"$f":"D94","v":2},"x"]
[]
[]
[{"$f":"A101+1","v":18},"Nabavka niklovane baterije za umivaonik.  Jednoručna hromirana nadgradna baterija za toplu i hladnu vodu tipa SBA PRO ili slično, sa minimum 5 godina garancije. Za ovu poziciju su predviđena rezervisana sredstva te je ponuđena cena ista za sve ponuđače."]
[null,"Obračun po montiranoj bateriji."]
[null,"stojeća - za toplu i hladnu vodu.","kom",2,"x",6000,{"$f":"D108*F108","v":12000}]
[]
[]
[{"$f":"A106+1","v":19},"Nabavka i montaža ogledala 60/40 cm, koje se postavlja iznad umivaonika."]
[null,"Obračun po montiranom ogledalu.","kom",{"$f":"D94","v":2},"x"]
[]
[]
[{"$f":"A111+1","v":20},"Nabavka i montaža držača za ubruse za ruke  tipa tork H2list ili slično  koji se postavlja pored umivaonika."]
[null,"Obračun po montiranom držaču.","kom",2,"x"]
[]
[]
[]
[{"$f":"#REF!+1","v":{"$error":"#REF!"}},"Nabavka i montaža metalnog dozatora za tečni sapun 0.5l  tipa tork ili slično  koji se postavlja pored tuša i umivaonika."]
[null,"Obračun po montiranom držaču.","kom",2,"x"]
[]
[]
["IV","Ukupno sanitarni objekti i pribor"]
[]
[null,"REKAPITULACIJA"]
[]
["I","Ukupno građevinski radovi"]
["II","Ukupno kanalizacija"]
["III","Ukupno vodovod"]
["IV","Ukupno sanitarni objekti i pribor"]
[]
[null,"Ukupno: din."]
[]
[]
[null,"U Beogradu,",null,null,null,"Projektant:"]
[null,"maj, 2015. god."]

{"sheet":"МАШИНСКЕ","index":3,"n_rows":24,"n_cols":11,"rows_kept":24,"cut":false,"hidden":false,"merged":[[6,1,6,4],[0,0,0,10],[1,0,1,10],[2,0,2,10],[3,0,3,10],[4,1,4,3],[15,1,15,4],[16,1,16,3],[9,1,9,4],[12,1,12,4],[7,1,7,3]]}
["          PREDMER I PREDRAČUN MAŠINSKIH RADOVA"]
["        ZA KLIMATIZACIJU I VENTILACIJU"]
["SOKOBANJSKA"]
[]
[null,"A.- Oprema i kanali"]
[]
["1.-","Iporuka i montaža kupatilskog ventilatora za izvlačenje vazduha, komplet sa nosačima i fleksibilnim vezama, izolacijom i svom ostalom opremom tip: X-MART 10 MATIC  proizvod Systemair ili sličnog, sa sledećim karakteristikama:\n .- protok vazduha L = 98 (m3/h),\n .- napor H = 30 (Pa),\n .- nivo buke do 38 dB(A),\n .- snaga motora Pel = 15 (W),\n .- V-ph-Hz = 230 v -50 Hz\n .- broj obrtaja motora 2500 (o/min),\n .- širina/visina/dužina = 150/150 150 (mm), \n"]
[null,null,null,null,"kom",1,"x",null,"=",null,"din"]
[]
["2.-","Isporuka i izrada tremičke izolacije od \narmafleksa ili sličnog materijala d = 13 (mm)\n u tablama širine 1(m) u kompletu sa trakama, \nlepkom i ostalim potrebnim elementima."]
[null,null,null,null,"m2",5,"x",null,"=",null,"din"]
[]
["3.-","Isporuka i montaža plastičnih rebrastih savitljivih cevi f 110 (mm)."]
[null,null,null,null,"m",4,"x",null,"=",null,"din"]
[]
["4.-","Isporuka i montaža žaluzine za izbacivanje vazduha sa zaštitnom mrežom od insekata, sledećih dimenzija: "]
[null,"f 110",null,null,"kom",1,"x",null,"=",null,"din"]
[]
[]
[null,null,null,null,null,"UKUPNO  A",null,null,null,null,"din"]
[]
[]
[]
[null,null,null,null,null,"    ",null,"PROJEKTANT"]

{"sheet":"dojava požara","index":4,"n_rows":29,"n_cols":11,"rows_kept":29,"cut":false,"hidden":false,"merged":[[24,1,24,4],[28,4,28,5],[0,0,5,5],[6,0,6,5],[8,0,8,5],[22,1,22,4],[23,1,23,4]]}
["Пројектант је користио техничке и остале податке опреме произведена од стране појединих произвођача наведених у позицијама. Понуђач може понудити и опрему другог произвођача, у том случају навести  произвођача и тип опреме, поднети доказ да опрема по свему ( финансијски и технички ) компатибилна са предвиђеном опремом и тражити сагласност пројектанта и представника Инвеститора."]
[]
[]
[]
[null,null,null,null,null,null,null,"koeficijent","valuta"]
[null,null,null,null,null,null,null,1.2,120]
["Овим предмером предвиђа се набавка, испорука, постављање и повезивање свог наведеног материјала и опреме која је специфицирана као и свог ситног и потрошног материјала који није наведен у позицијама (обујмице, завртњи, навртке, типлови, гипс, конектори, адаптери, ПВЦ везице др.). Саставни део предмера и предрачуна је дати технички опис, технички услови и графичка документација. Извођач ће на градилишту предузети све прописима предвиђене мере заштите на раду.  Извођач ће о свом трошку отклонити сва оштећења на објекту до којих дође као резултат радова које он изводи. За све изведене радове и уграђени материјал који је сам набавио за потребе извођења ове инсталације изводач радова је обавезан дати писмену гаранцију и атесну документацију у складу са важећим прописима СРПС ЕН 54 - 14 и VdS и постојећим уговореним обавезама. Сав испоручен и уграђен материјал мора да одговара ЕН-54 односно VdS стандардима. Сви радови на објекту морају бити изведени  стручном радном снагом одговарајуће квалификационе структуре. Потенцијални извођач је у обавези да се пре давања понуде упозна са пројектном документацијом и са стањем објекта. Сви евентуални неспразуми који су резултат непознавања ових елемената падају на терет извођача."]
[]
["ПРЕДМЕР И ПРЕДРАЧУН РАДОВА И МАТЕРИЈАЛА"]
[null,null,null,null,null,null,1]
["РБ","ОПИС","Јед. мере","Количина","Јед. мена","Укупно"]
[]
[1,"Довођење у безнапонско стање постојеце инсталације система дојаве позара у делу где се врши адаптација. Демонтажа постојећих  детектора пожара и припадајућих каблова у просторијама где се врши реконструкција. По завршеној демонтажи записнички предати демонтирану опрему Инвеститору, и након завршених радова све поново монтирати на првобитне позиције, и пустити у функцију.","h",30]
["."]
[2,"Набавка, испорука и монтажа инсталационих ребрастих цеви на зиду или плафону укључујући обујмице на сваких 30cm (halogen free):"]
["-","димензија 16 mm ","m",50,null,null,null,1.3]
[]
[3,"Набавка, испорука, полагање кроз ребрасте инсталационе цеви и означавање сигналног кабла:"]
["-","тип J-H(St)H 2x2x0,8mm","m",50,null,null,null,1.5]
[]
[4,"Сав неспецифирани монтажни и потрошни материјал као каблови, PVC везице, налепнице, типле и шрафови, двострано лепљива трака и сл., а неопходан за постизање пуне функционалности и повезивање извршних функција централе са осталим системима.","паушал",1,null,null,null,null,"do 500",0.39,0.6]
[null,null,null,null,null,null,null,null,"1001 - 2000",0.27,0.3]
[null,"УКУПНО:",null,null,null,null,null,null,"2001 - 3000",0.22,0.24]
[null,"ПДВ(20%):",null,null,null,null,null,null,"3001 - 4000",0.18,0.18]
[null,"УКУПНО са ПДВ-ом:",null,null,null,null,null,null,"4001 - 5000",0.15,0.15]
[null,null,null,null,null,null,null,null,"preko 5000",0.11,0.12]
["Напомена: цене су дате у РСД."]
[]
[null,null,null,null,"ОДГОВОРНИ ПРОЈЕКТАНТ"]

{"sheet":"РЕКАПИТУЛАЦИЈА","index":5,"n_rows":20,"n_cols":4,"rows_kept":20,"cut":false,"hidden":false,"merged":[[28,1,28,4],[2,1,2,9],[14,3,14,7],[24,1,24,4],[25,7,25,9]]}
[]
[]
[null,"РЕКАПИТУЛАЦИЈА РАДОВА"]
[]
[]
[]
[null,1,null,"ГРАЂЕВИНСКО ЗАНАТСКИ РАДОВИ                           "]
[]
[null,2,null,"ЕЛЕКТРОИНСТАЛАТЕРСКИ РАДОВИ"]
[]
[null,3,null,"ИНСТАЛАЦИЈЕ ВОДОВОДА И КАНАЛИЗАЦИЈЕ"]
[]
[null,4,null,"МАШИНСКЕ ИНСТАЛАЦИЈЕ               "]
[]
[null,5,null,"ДОЈАВА И ДЕТЕКЦИЈА ПОЖАРА"]
[]
[]
[]
[]
[null,null,null,"УКУПНО ДИНАРА:"]